[Event "Chessable Masters - Torneo preliminare"]
[White "Sjugirov, Sanan"]
[Black "Vokhidov, Shamsiddin"]
[WhiteFideId "4189302"]
[BlackFideId "14204223"]
[WhiteElo "2543"]
[BlackElo "2514"]
[Result "1-0"]
[Round "9"]
[TimeControl "600+2"]
[Date "2023.03.13"]
[WhiteClock "0:00:12"]
[BlackClock "0:00:15"]

1. d4 {[%clk 0:10:01]}  Nf6 {[%clk 0:09:59]} 2. c4 {[%clk 0:10:02]}  e6 {[%clk 0:10:00]} 3. Nf3 {[%clk 0:09:59]}  d5 {[%clk 0:10:01]} 4. g3 {[%clk 0:09:56]}  dxc4 {[%clk 0:10:01]} 5. Bg2 {[%clk 0:09:57]}  Nc6 {[%clk 0:10:01]} 6. Qa4 {[%clk 0:09:55]}  Bb4+ {[%clk 0:10:01]} 7. Bd2 {[%clk 0:09:47]}  Nd5 {[%clk 0:10:02]} 8. Bxb4 {[%clk 0:09:36]}  Nxb4 {[%clk 0:10:04]} 9. O-O {[%clk 0:09:16]}  Rb8 {[%clk 0:09:04]} 10. Nc3 {[%clk 0:08:39]}  a6 {[%clk 0:09:04]} 11. Ne5 {[%clk 0:08:37]}  O-O {[%clk 0:08:59]} 12. Nxc6 {[%clk 0:08:35]}  Nxc6 {[%clk 0:09:00]} 13. Bxc6 {[%clk 0:08:32]}  bxc6 {[%clk 0:09:02]} 14. Qxc4 {[%clk 0:08:13]}  Qd6 {[%clk 0:09:02]} 15. b3 {[%clk 0:07:53]}  Rb4 {[%clk 0:08:59]} 16. Ne4 {[%clk 0:07:45]}  Rxc4 {[%clk 0:09:00]} 17. Nxd6 {[%clk 0:07:46]}  Rxd4 {[%clk 0:09:02]} 18. Nc4 {[%clk 0:07:45]}  e5 {[%clk 0:08:50]} 19. Rfc1 {[%clk 0:07:20]}  f6 {[%clk 0:08:27]} 20. Kf1 {[%clk 0:07:12]}  Rd5 {[%clk 0:07:02]} 21. Ke1 {[%clk 0:07:04]}  Be6 {[%clk 0:06:35]} 22. Rc2 {[%clk 0:06:48]}  Rc5 {[%clk 0:06:00]} 23. Rac1 {[%clk 0:06:46]}  Rd8 {[%clk 0:05:54]} 24. Nd2 {[%clk 0:05:34]}  Rxc2 {[%clk 0:05:50]} 25. Rxc2 {[%clk 0:05:36]}  Rd6 {[%clk 0:05:49]} 26. Ne4 {[%clk 0:05:14]}  Bf5 {[%clk 0:05:49]} 27. Nxd6 {[%clk 0:05:07]}  Bxc2 {[%clk 0:05:49]} 28. Ne8 {[%clk 0:05:05]}  a5 {[%clk 0:05:37]} 29. Kd2 {[%clk 0:04:53]}  Bf5 {[%clk 0:05:36]} 30. Nxc7 {[%clk 0:04:53]}  Kf7 {[%clk 0:04:52]} 31. Na6 {[%clk 0:04:41]}  Ke7 {[%clk 0:04:35]} 32. Nc5 {[%clk 0:04:16]}  Bc8 {[%clk 0:04:35]} 33. Kc3 {[%clk 0:03:26]}  Kd6 {[%clk 0:04:36]} 34. Kc4 {[%clk 0:03:26]}  Kc7 {[%clk 0:04:37]} 35. b4 {[%clk 0:03:15]}  axb4 {[%clk 0:04:04]} 36. Kxb4 {[%clk 0:03:15]}  Bg4 {[%clk 0:04:03]} 37. e3 {[%clk 0:03:08]}  Bc8 {[%clk 0:03:55]} 38. a4 {[%clk 0:03:06]}  Kb6 {[%clk 0:03:54]} 39. a5+ {[%clk 0:03:07]}  Kc7 {[%clk 0:03:55]} 40. Kc4 {[%clk 0:02:55]}  Bg4 {[%clk 0:03:45]} 41. f4 {[%clk 0:02:41]}  Bc8 {[%clk 0:03:17]} 42. fxe5 {[%clk 0:02:29]}  fxe5 {[%clk 0:03:19]} 43. Ne4 {[%clk 0:02:07]}  Bf5 {[%clk 0:03:17]} 44. Nc5 {[%clk 0:01:30]}  Bc8 {[%clk 0:03:15]} 45. Kb4 {[%clk 0:00:40]}  h6 {[%clk 0:03:06]} 46. Kc4 {[%clk 0:00:35]}  Bh3 {[%clk 0:02:55]} 47. Nd3 {[%clk 0:00:19]}  Bf1 {[%clk 0:00:28]} 48. Kc3 {[%clk 0:00:20]}  Kd6 {[%clk 0:00:22]} 49. a6 {[%clk 0:00:21]}  Kc7 {[%clk 0:00:23]} 50. a7 {[%clk 0:00:14]}  Kb7 {[%clk 0:00:24]} 51. Nxe5 {[%clk 0:00:13]}  Bg2 {[%clk 0:00:22]} 52. Kd4 {[%clk 0:00:08]}  Kxa7 {[%clk 0:00:23]} 53. Kc5 {[%clk 0:00:09]}  Kb7 {[%clk 0:00:24]} 54. Ng6 {[%clk 0:00:06]}  Bd5 {[%clk 0:00:15]} 55. Ne7 {[%clk 0:00:04]}  Be4 {[%clk 0:00:12]} 56. Kd4 {[%clk 0:00:05]}  Bc2 {[%clk 0:00:11]} 57. Kc5 {[%clk 0:00:03]}  Be4 {[%clk 0:00:12]} 58. g4 {[%clk 0:00:04]}  Kc7 {[%clk 0:00:12]} 59. Nf5 {[%clk 0:00:03]}  Bf3 {[%clk 0:00:03]} 60. h3 {[%clk 0:00:04]}  Bg2 {[%clk 0:00:04]} 61. h4 {[%clk 0:00:04]}  Bh3 {[%clk 0:00:06]} 62. Nxg7 {[%clk 0:00:05]}  Bxg4 {[%clk 0:00:08]} 63. Ne8+ {[%clk 0:00:07]}  Kd8 {[%clk 0:00:06]} 64. Nd6 {[%clk 0:00:07]}  Kd7 {[%clk 0:00:06]} 65. Nf7 {[%clk 0:00:09]}  h5 {[%clk 0:00:06]} 66. Ne5+ {[%clk 0:00:09]}  Ke6 {[%clk 0:00:08]} 67. Nxc6 {[%clk 0:00:09]}  Bh3 {[%clk 0:00:08]} 68. e4 {[%clk 0:00:08]}  Bf1 {[%clk 0:00:06]} 69. Kd4 {[%clk 0:00:09]}  Kd6 {[%clk 0:00:07]} 70. Ne5 {[%clk 0:00:09]}  Ke6 {[%clk 0:00:07]} 71. Nd3 {[%clk 0:00:09]}  Bxd3 {[%clk 0:00:05]} 72. Kxd3 {[%clk 0:00:11]}  Ke5 {[%clk 0:00:06]} 73. Ke3 {[%clk 0:00:12]}  Ke6 {[%clk 0:00:08]} 74. Kf4 {[%clk 0:00:12]}  Kf6 {[%clk 0:00:09]} 75. e5+ {[%clk 0:00:09]}  Ke6 {[%clk 0:00:11]} 76. Ke4 {[%clk 0:00:11]}  Ke7 {[%clk 0:00:12]} 77. Kf5 {[%clk 0:00:09]}  Kf7 {[%clk 0:00:13]} 78. Kg5 {[%clk 0:00:10]}  Ke6 {[%clk 0:00:14]} 79. Kxh5 {[%clk 0:00:11]}  Kxe5 {[%clk 0:00:15]} 80. Kg6 {[%clk 0:00:12]} 1-0


[Site "Internet"]

[Event "Chessable Masters - Torneo preliminare"]
[White "Makarian, Rudik"]
[Black "Nguyen, Ngoc Truong Son"]
[WhiteFideId "44105681"]
[BlackFideId "12401110"]
[WhiteElo "2462"]
[BlackElo "2585"]
[Result "1-0"]
[Round "9"]
[TimeControl "600+2"]
[Date "2023.03.13"]
[WhiteClock "0:03:13"]
[BlackClock "0:00:04"]

1. d4 {[%clk 0:10:00]}  Nf6 {[%clk 0:09:57]} 2. c4 {[%clk 0:09:55]}  g6 {[%clk 0:09:57]} 3. Nc3 {[%clk 0:09:53]}  Bg7 {[%clk 0:09:57]} 4. e4 {[%clk 0:09:53]}  d6 {[%clk 0:09:59]} 5. Be2 {[%clk 0:09:55]}  Nbd7 {[%clk 0:09:58]} 6. Nf3 {[%clk 0:09:54]}  e5 {[%clk 0:09:58]} 7. O-O {[%clk 0:09:52]}  O-O {[%clk 0:09:58]} 8. Be3 {[%clk 0:09:53]}  c6 {[%clk 0:09:49]} 9. d5 {[%clk 0:09:53]}  Qc7 {[%clk 0:09:10]} 10. Nd2 {[%clk 0:09:42]}  a6 {[%clk 0:08:32]} 11. Rc1 {[%clk 0:09:02]}  c5 {[%clk 0:07:56]} 12. g4 {[%clk 0:09:00]}  Kh8 {[%clk 0:07:25]} 13. Kh1 {[%clk 0:08:53]}  Qd8 {[%clk 0:07:20]} 14. Rg1 {[%clk 0:08:52]}  Ng8 {[%clk 0:07:09]} 15. Rg2 {[%clk 0:08:32]}  Bh6 {[%clk 0:04:27]} 16. g5 {[%clk 0:08:32]}  Bg7 {[%clk 0:04:28]} 17. h4 {[%clk 0:08:13]}  f5 {[%clk 0:04:21]} 18. exf5 {[%clk 0:07:56]}  Rxf5 {[%clk 0:04:06]} 19. Nde4 {[%clk 0:07:49]}  Nf8 {[%clk 0:04:05]} 20. h5 {[%clk 0:07:29]}  gxh5 {[%clk 0:03:41]} 21. Bxh5 {[%clk 0:07:31]}  Ne7 {[%clk 0:02:51]} 22. Rh2 {[%clk 0:07:07]}  Neg6 {[%clk 0:02:01]} 23. Bxg6 {[%clk 0:05:00]}  Nxg6 {[%clk 0:02:03]} 24. Qh5 {[%clk 0:04:59]}  Nf8 {[%clk 0:01:58]} 25. Ng3 {[%clk 0:04:59]}  Qe7 {[%clk 0:01:50]} 26. Nce4 {[%clk 0:04:54]}  Kg8 {[%clk 0:01:17]} 27. Rg1 {[%clk 0:04:50]}  b5 {[%clk 0:00:28]} 28. Nxf5 {[%clk 0:03:29]}  Bxf5 {[%clk 0:00:30]} 29. Nf6+ {[%clk 0:03:31]}  Kh8 {[%clk 0:00:31]} 30. Nxh7 {[%clk 0:03:22]}  Bxh7 {[%clk 0:00:16]} 31. g6 {[%clk 0:03:23]}  bxc4 {[%clk 0:00:09]} 32. gxh7 {[%clk 0:03:24]}  Qb7 {[%clk 0:00:05]} 33. f3 {[%clk 0:03:14]}  Qxd5 {[%clk 0:00:04]} 34. Rxg7 {[%clk 0:03:13]} 1-0


[Site "Internet"]

[Event "Chessable Masters - Torneo preliminare"]
[White "Harikrishna, Pentala"]
[Black "Anton Guijarro, David"]
[WhiteFideId "5007003"]
[BlackFideId "2285525"]
[WhiteElo "2627"]
[BlackElo "2635"]
[Result "1-0"]
[Round "9"]
[TimeControl "600+2"]
[Date "2023.03.13"]
[WhiteClock "0:00:37"]
[BlackClock "0:00:04"]

1. e4 {[%clk 0:10:01]}  c6 {[%clk 0:10:00]} 2. Nf3 {[%clk 0:10:01]}  d5 {[%clk 0:10:00]} 3. d3 {[%clk 0:10:02]}  g6 {[%clk 0:10:01]} 4. e5 {[%clk 0:09:59]}  c5 {[%clk 0:10:02]} 5. d4 {[%clk 0:09:55]}  cxd4 {[%clk 0:09:37]} 6. Nxd4 {[%clk 0:09:54]}  Bg7 {[%clk 0:09:31]} 7. Bb5+ {[%clk 0:09:18]}  Bd7 {[%clk 0:09:28]} 8. Qe2 {[%clk 0:08:01]}  Bxb5 {[%clk 0:08:33]} 9. Qxb5+ {[%clk 0:07:59]}  Qd7 {[%clk 0:08:33]} 10. Qxd7+ {[%clk 0:07:26]}  Kxd7 {[%clk 0:08:22]} 11. f4 {[%clk 0:07:26]}  Nc6 {[%clk 0:08:21]} 12. Be3 {[%clk 0:07:07]}  Nxd4 {[%clk 0:08:10]} 13. Bxd4 {[%clk 0:07:08]}  e6 {[%clk 0:08:12]} 14. c4 {[%clk 0:06:37]}  Ne7 {[%clk 0:07:49]} 15. cxd5 {[%clk 0:06:32]}  Nxd5 {[%clk 0:07:47]} 16. Nc3 {[%clk 0:06:31]}  Nxc3 {[%clk 0:07:40]} 17. Bxc3 {[%clk 0:06:32]}  Rhc8 {[%clk 0:07:38]} 18. Ke2 {[%clk 0:06:27]}  Bf8 {[%clk 0:07:35]} 19. Rhd1+ {[%clk 0:06:25]}  Ke8 {[%clk 0:07:35]} 20. Rac1 {[%clk 0:06:15]}  Be7 {[%clk 0:06:55]} 21. g3 {[%clk 0:05:50]}  Rc6 {[%clk 0:06:09]} 22. Bd4 {[%clk 0:05:23]}  Rac8 {[%clk 0:06:04]} 23. Rxc6 {[%clk 0:05:17]}  Rxc6 {[%clk 0:06:06]} 24. Bxa7 {[%clk 0:04:52]}  Ra6 {[%clk 0:06:03]} 25. Bd4 {[%clk 0:04:47]}  Rxa2 {[%clk 0:06:03]} 26. Kd3 {[%clk 0:04:41]}  h5 {[%clk 0:04:42]} 27. h3 {[%clk 0:04:25]}  Kd7 {[%clk 0:04:21]} 28. g4 {[%clk 0:04:17]}  hxg4 {[%clk 0:03:32]} 29. hxg4 {[%clk 0:04:17]}  Ra4 {[%clk 0:03:13]} 30. Rh1 {[%clk 0:04:00]}  Kc6 {[%clk 0:02:11]} 31. Rh7 {[%clk 0:03:28]}  Kd5 {[%clk 0:02:11]} 32. Be3 {[%clk 0:03:29]}  Rb4 {[%clk 0:02:05]} 33. Rxf7 {[%clk 0:02:18]}  Rb3+ {[%clk 0:02:05]} 34. Ke2 {[%clk 0:02:19]}  Ke4 {[%clk 0:01:58]} 35. Bd2 {[%clk 0:01:16]}  Bc5 {[%clk 0:00:55]} 36. Bc3 {[%clk 0:01:10]}  Be3 {[%clk 0:00:41]} 37. f5 {[%clk 0:00:37]}  gxf5 {[%clk 0:00:40]} 38. gxf5 {[%clk 0:00:38]}  exf5 {[%clk 0:00:30]} 39. e6 {[%clk 0:00:39]}  Rb6 {[%clk 0:00:24]} 40. Rf6 {[%clk 0:00:41]}  f4 {[%clk 0:00:04]} 41. e7 {[%clk 0:00:37]} 1-0


[Site "Internet"]

[Event "Chessable Masters - Torneo preliminare"]
[White "Terry, Renato"]
[Black "Malakhov, Vladimir"]
[WhiteFideId "3803457"]
[BlackFideId "4120787"]
[WhiteElo "2472"]
[BlackElo "2666"]
[Result "1/2-1/2"]
[Round "9"]
[TimeControl "600+2"]
[Date "2023.03.13"]
[WhiteClock "0:05:40"]
[BlackClock "0:07:12"]

1. Nf3 {[%clk 0:10:01]}  d5 {[%clk 0:10:00]} 2. e3 {[%clk 0:10:02]}  Nf6 {[%clk 0:10:00]} 3. b3 {[%clk 0:10:02]}  Bg4 {[%clk 0:09:51]} 4. Bb2 {[%clk 0:10:03]}  e6 {[%clk 0:09:49]} 5. h3 {[%clk 0:10:04]}  Bxf3 {[%clk 0:09:49]} 6. Qxf3 {[%clk 0:10:04]}  Nbd7 {[%clk 0:09:50]} 7. g4 {[%clk 0:10:04]}  h6 {[%clk 0:09:14]} 8. d3 {[%clk 0:09:28]}  Bb4+ {[%clk 0:09:08]} 9. c3 {[%clk 0:09:29]}  Bd6 {[%clk 0:09:07]} 10. Nd2 {[%clk 0:09:27]}  Qe7 {[%clk 0:09:03]} 11. a3 {[%clk 0:09:20]}  Nc5 {[%clk 0:08:44]} 12. Qe2 {[%clk 0:09:09]}  c6 {[%clk 0:08:22]} 13. Bg2 {[%clk 0:09:01]}  e5 {[%clk 0:08:14]} 14. d4 {[%clk 0:06:16]}  exd4 {[%clk 0:07:56]} 15. cxd4 {[%clk 0:06:18]}  Nce4 {[%clk 0:07:55]} 16. Nf3 {[%clk 0:05:53]}  Nd7 {[%clk 0:07:33]} 17. Nd2 {[%clk 0:05:41]}  Ndf6 {[%clk 0:07:13]} 18. Nf3 {[%clk 0:05:41]}  Nd7 {[%clk 0:07:13]} 19. Nd2 {[%clk 0:05:40]}  Ndf6 {[%clk 0:07:12]} 1/2-1/2


[Site "Internet"]

[Event "Chessable Masters - Torneo preliminare"]
[White "Pichot, Alan"]
[Black "Svane, Rasmus"]
[WhiteFideId "110973"]
[BlackFideId "4657101"]
[WhiteElo "2549"]
[BlackElo "2621"]
[Result "0-1"]
[Round "9"]
[TimeControl "600+2"]
[Date "2023.03.13"]
[WhiteClock "0:00:24"]
[BlackClock "0:00:35"]

1. e4 {[%clk 0:09:49]}  e5 {[%clk 0:09:59]} 2. Nf3 {[%clk 0:09:50]}  Nc6 {[%clk 0:10:00]} 3. Bb5 {[%clk 0:09:50]}  a6 {[%clk 0:09:52]} 4. Ba4 {[%clk 0:09:51]}  Nf6 {[%clk 0:09:52]} 5. O-O {[%clk 0:09:50]}  Be7 {[%clk 0:09:48]} 6. Re1 {[%clk 0:09:51]}  b5 {[%clk 0:09:48]} 7. Bb3 {[%clk 0:09:52]}  O-O {[%clk 0:09:49]} 8. a4 {[%clk 0:09:51]}  b4 {[%clk 0:09:48]} 9. d3 {[%clk 0:09:50]}  d6 {[%clk 0:09:46]} 10. a5 {[%clk 0:09:49]}  Be6 {[%clk 0:09:45]} 11. Bxe6 {[%clk 0:09:22]}  fxe6 {[%clk 0:09:45]} 12. Nbd2 {[%clk 0:09:24]}  Rb8 {[%clk 0:09:42]} 13. c3 {[%clk 0:09:24]}  bxc3 {[%clk 0:09:35]} 14. bxc3 {[%clk 0:09:25]}  Rb5 {[%clk 0:09:37]} 15. d4 {[%clk 0:09:23]}  exd4 {[%clk 0:09:33]} 16. cxd4 {[%clk 0:09:23]}  Nxa5 {[%clk 0:09:34]} 17. Qc2 {[%clk 0:09:24]}  Qd7 {[%clk 0:08:17]} 18. Ba3 {[%clk 0:08:45]}  Rc8 {[%clk 0:08:04]} 19. Rac1 {[%clk 0:08:33]}  h6 {[%clk 0:07:48]} 20. e5 {[%clk 0:08:03]}  dxe5 {[%clk 0:06:50]} 21. Nxe5 {[%clk 0:07:17]}  Qe8 {[%clk 0:06:05]} 22. Bxe7 {[%clk 0:05:34]}  Qxe7 {[%clk 0:06:07]} 23. Ndf3 {[%clk 0:05:35]}  Qd6 {[%clk 0:05:36]} 24. Qg6 {[%clk 0:04:44]}  Rf8 {[%clk 0:05:19]} 25. Rc2 {[%clk 0:04:37]}  c5 {[%clk 0:04:54]} 26. dxc5 {[%clk 0:03:46]}  Rxc5 {[%clk 0:04:52]} 27. Rce2 {[%clk 0:03:43]}  Rd5 {[%clk 0:03:30]} 28. Ng4 {[%clk 0:03:06]}  Nxg4 {[%clk 0:03:30]} 29. Rxe6 {[%clk 0:02:30]}  Qf4 {[%clk 0:02:53]} 30. Re7 {[%clk 0:02:23]}  Qf6 {[%clk 0:02:06]} 31. Qxg4 {[%clk 0:02:23]}  Rg5 {[%clk 0:01:26]} 32. Qe6+ {[%clk 0:00:44]}  Qxe6 {[%clk 0:01:26]} 33. R7xe6 {[%clk 0:00:28]}  Rxf3 {[%clk 0:01:21]} 34. Rxa6 {[%clk 0:00:26]}  Rf6 {[%clk 0:01:11]} 35. Rxf6 {[%clk 0:00:17]}  gxf6 {[%clk 0:01:13]} 36. g3 {[%clk 0:00:18]}  Kf7 {[%clk 0:01:11]} 37. Kg2 {[%clk 0:00:19]}  Nc6 {[%clk 0:01:11]} 38. Rc1 {[%clk 0:00:19]}  Nd4 {[%clk 0:00:53]} 39. Rc7+ {[%clk 0:00:20]}  Kg6 {[%clk 0:00:54]} 40. Rd7 {[%clk 0:00:20]}  Ne6 {[%clk 0:00:52]} 41. Rd6 {[%clk 0:00:20]}  Re5 {[%clk 0:00:39]} 42. Rd2 {[%clk 0:00:17]}  f5 {[%clk 0:00:37]} 43. Rd6 {[%clk 0:00:15]}  Kf6 {[%clk 0:00:38]} 44. Rd2 {[%clk 0:00:16]}  Rc5 {[%clk 0:00:35]} 45. Ra2 {[%clk 0:00:15]}  Rc6 {[%clk 0:00:35]} 46. Rd2 {[%clk 0:00:16]}  Ng5 {[%clk 0:00:36]} 47. Ra2 {[%clk 0:00:11]}  Rd6 {[%clk 0:00:37]} 48. f3 {[%clk 0:00:05]}  Nf7 {[%clk 0:00:35]} 49. Re2 {[%clk 0:00:05]}  Ne5 {[%clk 0:00:35]} 50. Ra2 {[%clk 0:00:03]}  Nc4 {[%clk 0:00:37]} 51. Kh3 {[%clk 0:00:04]}  Kg5 {[%clk 0:00:33]} 52. Ra4 {[%clk 0:00:04]}  Nd2 {[%clk 0:00:31]} 53. f4+ {[%clk 0:00:05]}  Kg6 {[%clk 0:00:31]} 54. g4 {[%clk 0:00:06]}  Rd3+ {[%clk 0:00:31]} 55. Kh4 {[%clk 0:00:06]}  Nf3+ {[%clk 0:00:32]} 56. Kg3 {[%clk 0:00:08]}  Ne5+ {[%clk 0:00:26]} 57. Kh4 {[%clk 0:00:07]}  Nxg4 {[%clk 0:00:28]} 58. Ra6+ {[%clk 0:00:06]}  Nf6 {[%clk 0:00:26]} 59. h3 {[%clk 0:00:07]}  Rd4 {[%clk 0:00:28]} 60. Kg3 {[%clk 0:00:07]}  Re4 {[%clk 0:00:28]} 61. Kf3 {[%clk 0:00:07]}  Rd4 {[%clk 0:00:21]} 62. Ke3 {[%clk 0:00:06]}  Rb4 {[%clk 0:00:22]} 63. Kf3 {[%clk 0:00:06]}  Rb3+ {[%clk 0:00:23]} 64. Kg2 {[%clk 0:00:07]}  Rd3 {[%clk 0:00:25]} 65. Rb6 {[%clk 0:00:07]}  Kf7 {[%clk 0:00:26]} 66. Rb7+ {[%clk 0:00:08]}  Ke6 {[%clk 0:00:27]} 67. Rb6+ {[%clk 0:00:09]}  Rd6 {[%clk 0:00:27]} 68. Rb7 {[%clk 0:00:10]}  Nh5 {[%clk 0:00:27]} 69. Rb4 {[%clk 0:00:08]}  Kf6 {[%clk 0:00:28]} 70. Kf3 {[%clk 0:00:09]}  Rd3+ {[%clk 0:00:27]} 71. Kg2 {[%clk 0:00:10]}  Re3 {[%clk 0:00:29]} 72. Rb6+ {[%clk 0:00:10]}  Re6 {[%clk 0:00:30]} 73. Rb4 {[%clk 0:00:11]}  Re4 {[%clk 0:00:31]} 74. Rb6+ {[%clk 0:00:12]}  Kg7 {[%clk 0:00:32]} 75. Rb7+ {[%clk 0:00:13]}  Kf8 {[%clk 0:00:32]} 76. Rb8+ {[%clk 0:00:12]}  Ke7 {[%clk 0:00:26]} 77. Rb7+ {[%clk 0:00:13]}  Ke8 {[%clk 0:00:26]} 78. Rb8+ {[%clk 0:00:12]}  Kd7 {[%clk 0:00:27]} 79. Rb7+ {[%clk 0:00:14]}  Kc6 {[%clk 0:00:25]} 80. Rh7 {[%clk 0:00:14]}  Nxf4+ {[%clk 0:00:25]} 81. Kf3 {[%clk 0:00:16]}  Ne6 {[%clk 0:00:24]} 82. Rxh6 {[%clk 0:00:17]}  Kd5 {[%clk 0:00:25]} 83. h4 {[%clk 0:00:18]}  Ke5 {[%clk 0:00:27]} 84. Rh8 {[%clk 0:00:19]}  Nd4+ {[%clk 0:00:26]} 85. Kg3 {[%clk 0:00:17]}  Re3+ {[%clk 0:00:27]} 86. Kg2 {[%clk 0:00:19]}  Re2+ {[%clk 0:00:27]} 87. Kh3 {[%clk 0:00:18]}  Kf4 {[%clk 0:00:24]} 88. Ra8 {[%clk 0:00:15]}  Re3+ {[%clk 0:00:23]} 89. Kg2 {[%clk 0:00:16]}  Kg4 {[%clk 0:00:24]} 90. Rg8+ {[%clk 0:00:15]}  Kxh4 {[%clk 0:00:25]} 91. Kf2 {[%clk 0:00:17]}  Re2+ {[%clk 0:00:25]} 92. Kf1 {[%clk 0:00:18]}  Re4 {[%clk 0:00:26]} 93. Kf2 {[%clk 0:00:19]}  Ne6 {[%clk 0:00:27]} 94. Kf3 {[%clk 0:00:19]}  Ng5+ {[%clk 0:00:28]} 95. Kf2 {[%clk 0:00:20]}  Kg4 {[%clk 0:00:29]} 96. Rg7 {[%clk 0:00:20]}  Kf4 {[%clk 0:00:28]} 97. Rg8 {[%clk 0:00:20]}  Nf7 {[%clk 0:00:27]} 98. Rg7 {[%clk 0:00:20]}  Ne5 {[%clk 0:00:28]} 99. Rg8 {[%clk 0:00:21]}  Ng4+ {[%clk 0:00:30]} 100. Kg2 {[%clk 0:00:22]}  Re2+ {[%clk 0:00:31]} 101. Kf1 {[%clk 0:00:23]}  Rd2 {[%clk 0:00:32]} 102. Ra8 {[%clk 0:00:23]}  Kf3 {[%clk 0:00:33]} 103. Ra3+ {[%clk 0:00:23]}  Ne3+ {[%clk 0:00:34]} 104. Kg1 {[%clk 0:00:24]}  f4 {[%clk 0:00:35]} 105. Kh1 {[%clk 0:00:25]}  Kg3 {[%clk 0:00:33]} 106. Ra1 {[%clk 0:00:24]}  Rd1+ {[%clk 0:00:35]} 0-1


[Site "Internet"]

[Event "Chessable Masters - Torneo preliminare"]
[White "Kosteniuk, Alexandra"]
[Black "Paravyan, David"]
[WhiteFideId "4128125"]
[BlackFideId "4194985"]
[WhiteElo "2524"]
[BlackElo "2598"]
[Result "1/2-1/2"]
[Round "9"]
[TimeControl "600+2"]
[Date "2023.03.13"]
[WhiteClock "0:00:11"]
[BlackClock "0:00:30"]

1. e4 {[%clk 0:10:01]}  e5 {[%clk 0:10:01]} 2. Nf3 {[%clk 0:10:02]}  Nf6 {[%clk 0:10:02]} 3. Nxe5 {[%clk 0:10:01]}  d6 {[%clk 0:10:04]} 4. Nf3 {[%clk 0:10:02]}  Nxe4 {[%clk 0:10:05]} 5. d4 {[%clk 0:10:03]}  d5 {[%clk 0:10:06]} 6. Bd3 {[%clk 0:10:04]}  Be7 {[%clk 0:10:02]} 7. O-O {[%clk 0:09:44]}  Nc6 {[%clk 0:10:03]} 8. Nbd2 {[%clk 0:09:43]}  Nd6 {[%clk 0:10:04]} 9. c3 {[%clk 0:09:33]}  Bf5 {[%clk 0:10:04]} 10. Qc2 {[%clk 0:09:33]}  Bxd3 {[%clk 0:10:03]} 11. Qxd3 {[%clk 0:09:35]}  O-O {[%clk 0:10:03]} 12. Ne5 {[%clk 0:09:29]}  Re8 {[%clk 0:09:47]} 13. b3 {[%clk 0:08:36]}  Bf6 {[%clk 0:06:16]} 14. f4 {[%clk 0:08:14]}  Ne7 {[%clk 0:06:01]} 15. Ba3 {[%clk 0:08:09]}  Qc8 {[%clk 0:06:02]} 16. Qf3 {[%clk 0:07:26]}  b6 {[%clk 0:05:30]} 17. g4 {[%clk 0:06:30]}  c5 {[%clk 0:05:28]} 18. Rfe1 {[%clk 0:05:35]}  Nb5 {[%clk 0:05:20]} 19. Bb2 {[%clk 0:05:09]}  cxd4 {[%clk 0:05:21]} 20. c4 {[%clk 0:05:07]}  Nc3 {[%clk 0:04:55]} 21. Nd3 {[%clk 0:03:23]}  h6 {[%clk 0:04:36]} 22. Ba3 {[%clk 0:03:10]}  Ng6 {[%clk 0:04:09]} 23. cxd5 {[%clk 0:02:33]}  Re3 {[%clk 0:04:02]} 24. Rxe3 {[%clk 0:02:01]}  dxe3 {[%clk 0:04:04]} 25. Nc4 {[%clk 0:02:00]}  Nh4 {[%clk 0:04:04]} 26. Qh3 {[%clk 0:01:53]}  h5 {[%clk 0:02:42]} 27. Nce5 {[%clk 0:01:27]}  Ne2+ {[%clk 0:02:06]} 28. Kf1 {[%clk 0:01:28]}  Qc2 {[%clk 0:02:03]} 29. Qxe3 {[%clk 0:00:57]}  Nxf4 {[%clk 0:01:33]} 30. Qxf4 {[%clk 0:00:38]}  Qg2+ {[%clk 0:01:19]} 31. Ke1 {[%clk 0:00:38]}  Qxd5 {[%clk 0:01:01]} 32. Ke2 {[%clk 0:00:19]}  Re8 {[%clk 0:01:00]} 33. Bb2 {[%clk 0:00:20]}  hxg4 {[%clk 0:00:35]} 34. Qc4 {[%clk 0:00:06]}  Qg2+ {[%clk 0:00:22]} 35. Kd1 {[%clk 0:00:06]}  Nf3 {[%clk 0:00:23]} 36. Qxf7+ {[%clk 0:00:06]}  Kh7 {[%clk 0:00:21]} 37. Qh5+ {[%clk 0:00:07]}  Kg8 {[%clk 0:00:22]} 38. Qxe8+ {[%clk 0:00:08]}  Kh7 {[%clk 0:00:24]} 39. Qh5+ {[%clk 0:00:08]}  Kg8 {[%clk 0:00:25]} 40. Qf7+ {[%clk 0:00:09]}  Kh7 {[%clk 0:00:26]} 41. Qg6+ {[%clk 0:00:10]}  Kg8 {[%clk 0:00:28]} 42. Qe8+ {[%clk 0:00:08]}  Kh7 {[%clk 0:00:29]} 43. Qh5+ {[%clk 0:00:10]}  Kg8 {[%clk 0:00:30]} 44. Qe8+ {[%clk 0:00:11]} 1/2-1/2


[Site "Internet"]

[Event "Chessable Masters - Torneo preliminare"]
[White "Darini, Pouria"]
[Black "Chirila, Ioan-Cristian"]
[WhiteFideId "12502200"]
[BlackFideId "1211668"]
[WhiteElo "2573"]
[BlackElo "2508"]
[Result "1/2-1/2"]
[Round "9"]
[TimeControl "600+2"]
[Date "2023.03.13"]
[WhiteClock "0:05:21"]
[BlackClock "0:05:10"]

1. e4 {[%clk 0:10:01]}  c5 {[%clk 0:09:47]} 2. Nf3 {[%clk 0:10:02]}  Nc6 {[%clk 0:09:49]} 3. Bb5 {[%clk 0:10:03]}  g6 {[%clk 0:09:49]} 4. O-O {[%clk 0:09:57]}  Bg7 {[%clk 0:09:49]} 5. d3 {[%clk 0:09:59]}  Nd4 {[%clk 0:09:13]} 6. Nxd4 {[%clk 0:09:59]}  cxd4 {[%clk 0:09:02]} 7. c3 {[%clk 0:09:21]}  a6 {[%clk 0:08:20]} 8. Bc4 {[%clk 0:09:21]}  e6 {[%clk 0:07:53]} 9. cxd4 {[%clk 0:09:22]}  Bxd4 {[%clk 0:07:51]} 10. Nc3 {[%clk 0:09:23]}  b5 {[%clk 0:07:36]} 11. Bb3 {[%clk 0:09:23]}  Bb7 {[%clk 0:07:35]} 12. Be3 {[%clk 0:08:55]}  Qb6 {[%clk 0:06:51]} 13. Qf3 {[%clk 0:08:35]}  Ne7 {[%clk 0:06:11]} 14. a4 {[%clk 0:08:12]}  O-O {[%clk 0:05:35]} 15. axb5 {[%clk 0:07:59]}  axb5 {[%clk 0:05:15]} 16. Rxa8 {[%clk 0:07:36]}  Bxa8 {[%clk 0:05:15]} 17. Ne2 {[%clk 0:05:28]}  Bxe3 {[%clk 0:05:10]} 18. Qxe3 {[%clk 0:05:21]} 1/2-1/2


[Site "Internet"]